[Event "*** Titled Tuesday Blitz"]
[Site "Chess.com"]
[Date "2020.05.19"]
[Round "6"]
[White "MateSchmate"]
[Black "Volodar_Murzin"]
[Result "1-0"]
[WhiteElo "2553"]
[BlackElo "2740"]
[TimeControl "180+1"]
[EndTime "13:09:45 PDT"]
[Termination "MateSchmate won by resignation"]

1. e4 {[%clk 0:03:00.9]} 1... c6 {[%clk 0:02:59.8]} 2. Bc4 {[%clk 0:03:00.3]}
2... d5 {[%clk 0:02:59.7]} 3. Bb3 {[%clk 0:03:01.2]} 3... dxe4 {[%clk
0:02:57.6]} 4. Qh5 {[%clk 0:03:00.9]} 4... e6 {[%clk 0:02:51.6]} 5. Nc3 {[%clk
0:02:59.5]} 5... Nf6 {[%clk 0:02:51.4]} 6. Qh4 {[%clk 0:02:59.5]} 6... Nbd7
{[%clk 0:02:49.9]} 7. Nxe4 {[%clk 0:02:59.8]} 7... Nxe4 {[%clk 0:02:49.8]} 8.
Qxe4 {[%clk 0:03:00.7]} 8... Nc5 {[%clk 0:02:50.3]} 9. Qe3 {[%clk 0:03:01.1]}
9... Be7 {[%clk 0:02:42.3]} 10. Nf3 {[%clk 0:02:59]} 10... O-O {[%clk
0:02:41.1]} 11. O-O {[%clk 0:02:57.3]} 11... a5 {[%clk 0:02:09.8]} 12. d4 {[%clk
0:02:51.7]} 12... Nxb3 {[%clk 0:02:09.4]} 13. axb3 {[%clk 0:02:52.6]} 13... g6
{[%clk 0:02:00.2]} 14. c4 {[%clk 0:02:45.5]} 14... Bf6 {[%clk 0:01:54.7]} 15.
Bd2 {[%clk 0:02:37.3]} 15... Bd7 {[%clk 0:01:53.5]} 16. Bc3 {[%clk 0:02:35]}
16... Bg7 {[%clk 0:01:52.1]} 17. Ne5 {[%clk 0:02:33]} 17... Qc7 {[%clk
0:01:40.6]} 18. Rfd1 {[%clk 0:02:22.9]} 18... Rfd8 {[%clk 0:01:26.9]} 19. Qd2
{[%clk 0:02:17.8]} 19... Be8 {[%clk 0:01:09.8]} 20. Qe1 {[%clk 0:01:57.8]} 20...
b6 {[%clk 0:01:05.5]} 21. Qe4 {[%clk 0:01:54.6]} 21... b5 {[%clk 0:00:34.6]} 22.
h4 {[%clk 0:01:09.3]} 22... b4 {[%clk 0:00:31.1]} 23. Be1 {[%clk 0:01:09]} 23...
c5 {[%clk 0:00:30.8]} 24. f4 {[%clk 0:00:52]} 24... cxd4 {[%clk 0:00:16]} 25.
Rxd4 {[%clk 0:00:52.2]} 25... Rxd4 {[%clk 0:00:15.9]} 26. Qxd4 {[%clk
0:00:53.1]} 26... Rd8 {[%clk 0:00:16.4]} 27. Qe3 {[%clk 0:00:51.9]} 27... h5
{[%clk 0:00:13.7]} 28. Bf2 {[%clk 0:00:49.5]} 28... Rb8 {[%clk 0:00:03.8]} 29.
Kh2 {[%clk 0:00:26.1]} 29... Ra8 {[%clk 0:00:01.5]} 30. g3 {[%clk 0:00:19.8]}
30... a4 {[%clk 0:00:01.6]} 31. bxa4 {[%clk 0:00:19.4]} 31... Rxa4 {[%clk
0:00:02.5]} 32. Rxa4 {[%clk 0:00:19.1]} 32... Bxa4 {[%clk 0:00:03.4]} 33. Qc5
{[%clk 0:00:17.6]} 33... Qxc5 {[%clk 0:00:03]} 34. Bxc5 {[%clk 0:00:18.5]} 34...
Bf8 {[%clk 0:00:03.7]} 35. Bxf8 {[%clk 0:00:17.4]} 35... Kxf8 {[%clk 0:00:04.6]}
36. Kg2 {[%clk 0:00:17.3]} 36... Ke7 {[%clk 0:00:04.4]} 37. Kf3 {[%clk
0:00:17.4]} 37... Be8 {[%clk 0:00:02.9]} 38. Nd3 {[%clk 0:00:17.4]} 38... b3
{[%clk 0:00:02.6]} 39. Nc5 {[%clk 0:00:17.8]} 39... Kd6 {[%clk 0:00:01.3]} 40.
Nxb3 {[%clk 0:00:17.7]} 40... Ba4 {[%clk 0:00:02.1]} 41. Nd2 {[%clk 0:00:17.1]}
41... Kc5 {[%clk 0:00:02.8]} 42. b3 {[%clk 0:00:17]} 42... Bc6+ {[%clk
0:00:03.2]} 43. Ke3 {[%clk 0:00:17.2]} 43... Kb4 {[%clk 0:00:02.3]} 44. Kd4
{[%clk 0:00:17.5]} 44... f6 {[%clk 0:00:03]} 45. Ne4 {[%clk 0:00:12.9]} 45...
Kxb3 {[%clk 0:00:02.4]} 46. Nxf6 {[%clk 0:00:12]} 46... Kc2 {[%clk 0:00:03.1]}
47. Ng8 {[%clk 0:00:11.3]} 47... Kd2 {[%clk 0:00:03.4]} 48. Ne7 {[%clk
0:00:11.4]} 48... Be8 {[%clk 0:00:04]} 49. c5 {[%clk 0:00:11.2]} 49... Ke2
{[%clk 0:00:04.5]} 50. c6 {[%clk 0:00:11]} 50... Bxc6 {[%clk 0:00:04.9]} 51.
Nxc6 {[%clk 0:00:11.8]} 51... Kf3 {[%clk 0:00:05.1]} 52. Ne5+ {[%clk 0:00:11.5]}
52... Kxg3 {[%clk 0:00:05.4]} 53. Nxg6 {[%clk 0:00:11.9]} 53... Kg4 {[%clk
0:00:06.3]} 54. Ke5 {[%clk 0:00:12.2]} 54... Kf3 {[%clk 0:00:06.9]} 55. Kxe6
{[%clk 0:00:12.7]} 1-0

[Event "*** Titled Tuesday Blitz"]
[Site "Chess.com"]
[Date "2020.05.19"]
[Round "6"]
[White "GMKrikor"]
[Black "Fusikk"]
[Result "1/2-1/2"]
[WhiteElo "2760"]
[BlackElo "2597"]
[TimeControl "180+1"]
[EndTime "13:09:46 PDT"]
[Termination "Game drawn by repetition"]

1. Nf3 {[%clk 0:03:00.9]} 1... d5 {[%clk 0:02:58.5]} 2. c4 {[%clk 0:03:00.4]}
2... c6 {[%clk 0:02:52.3]} 3. e3 {[%clk 0:02:58.9]} 3... Nf6 {[%clk 0:02:52]} 4.
Nc3 {[%clk 0:02:58.7]} 4... e6 {[%clk 0:02:48.2]} 5. b3 {[%clk 0:02:58.8]} 5...
Nbd7 {[%clk 0:02:47.7]} 6. Bb2 {[%clk 0:02:56.7]} 6... Bd6 {[%clk 0:02:47.7]} 7.
Qc2 {[%clk 0:02:56.4]} 7... O-O {[%clk 0:02:48]} 8. Be2 {[%clk 0:02:56.4]} 8...
a6 {[%clk 0:02:46.2]} 9. d4 {[%clk 0:02:54]} 9... Qe7 {[%clk 0:02:41.9]} 10. O-O
{[%clk 0:02:42.7]} 10... b5 {[%clk 0:02:32]} 11. e4 {[%clk 0:02:18.4]} 11... b4
{[%clk 0:01:25.1]} 12. e5 {[%clk 0:02:18.1]} 12... bxc3 {[%clk 0:01:22]} 13.
exd6 {[%clk 0:02:17.7]} 13... Qxd6 {[%clk 0:01:21.5]} 14. Bxc3 {[%clk
0:02:15.8]} 14... c5 {[%clk 0:01:19.2]} 15. dxc5 {[%clk 0:02:10.1]} 15... Qxc5
{[%clk 0:01:18.6]} 16. Rac1 {[%clk 0:01:57.9]} 16... dxc4 {[%clk 0:01:17.1]} 17.
Bxc4 {[%clk 0:01:54.2]} 17... Bb7 {[%clk 0:01:17.1]} 18. Qe2 {[%clk 0:01:51.2]}
18... Qh5 {[%clk 0:01:14.2]} 19. Ne5 {[%clk 0:01:28.6]} 19... Qxe2 {[%clk
0:01:03.5]} 20. Bxe2 {[%clk 0:01:29.5]} 20... Nb6 {[%clk 0:00:54.2]} 21. Ba5
{[%clk 0:01:14.1]} 21... Nbd5 {[%clk 0:00:53.5]} 22. Rfd1 {[%clk 0:01:13.9]}
22... Rfc8 {[%clk 0:00:50.3]} 23. f3 {[%clk 0:01:03.1]} 23... Kf8 {[%clk
0:00:36.6]} 24. Kf2 {[%clk 0:01:02.3]} 24... Ke7 {[%clk 0:00:35.8]} 25. Bc4
{[%clk 0:00:49.6]} 25... Nd7 {[%clk 0:00:32.1]} 26. Nxd7 {[%clk 0:00:44.6]}
26... Kxd7 {[%clk 0:00:31.4]} 27. Bd3 {[%clk 0:00:39.8]} 27... Ke8 {[%clk
0:00:28.5]} 28. h4 {[%clk 0:00:34.8]} 28... g6 {[%clk 0:00:27.9]} 29. h5 {[%clk
0:00:32]} 29... Nf4 {[%clk 0:00:28]} 30. Bf1 {[%clk 0:00:16.1]} 30... Nxh5
{[%clk 0:00:24.7]} 31. a4 {[%clk 0:00:10.6]} 31... Nf6 {[%clk 0:00:24.8]} 32. b4
{[%clk 0:00:10.1]} 32... Nd5 {[%clk 0:00:25.2]} 33. b5 {[%clk 0:00:10.7]} 33...
axb5 {[%clk 0:00:26.1]} 34. Bxb5+ {[%clk 0:00:10.4]} 34... Ke7 {[%clk 0:00:25]}
35. Bd2 {[%clk 0:00:08.1]} 35... Rxc1 {[%clk 0:00:22.4]} 36. Rxc1 {[%clk
0:00:08.3]} 36... Ba6 {[%clk 0:00:23.3]} 37. Bc6 {[%clk 0:00:05.9]} 37... Rc8
{[%clk 0:00:22.9]} 38. Bxd5 {[%clk 0:00:03.4]} 38... Rxc1 {[%clk 0:00:22.9]} 39.
Bxc1 {[%clk 0:00:02.9]} 39... exd5 {[%clk 0:00:23.3]} 40. Bb2 {[%clk 0:00:02.8]}
40... Ke6 {[%clk 0:00:23.3]} 41. Bd4 {[%clk 0:00:02.2]} 41... f6 {[%clk
0:00:22.8]} 42. g4 {[%clk 0:00:02.2]} 42... h5 {[%clk 0:00:22.8]} 43. Kg3 {[%clk
0:00:02.5]} 43... hxg4 {[%clk 0:00:22.3]} 44. fxg4 {[%clk 0:00:03.4]} 44... f5
{[%clk 0:00:21.9]} 45. g5 {[%clk 0:00:03.8]} 45... Bc4 {[%clk 0:00:21]} 46. Kf4
{[%clk 0:00:03.8]} 46... Ba6 {[%clk 0:00:21.6]} 47. a5 {[%clk 0:00:04.7]} 47...
Bc4 {[%clk 0:00:21.8]} 48. Be5 {[%clk 0:00:05]} 48... Ba6 {[%clk 0:00:22.1]} 49.
Bd4 {[%clk 0:00:05.9]} 49... Bc4 {[%clk 0:00:22.2]} 50. Be5 {[%clk 0:00:06.3]}
50... Ba6 {[%clk 0:00:22.4]} 51. Bd4 {[%clk 0:00:07.2]} 1/2-1/2

[Event "*** Titled Tuesday Blitz"]
[Site "Chess.com"]
[Date "2020.05.19"]
[Round "6"]
[White "miruna_daria28"]
[Black "MergenKakabaev"]
[Result "1/2-1/2"]
[WhiteElo "2277"]
[BlackElo "2444"]
[TimeControl "180+1"]
[EndTime "13:09:46 PDT"]
[Termination "Game drawn by repetition"]

1. e4 {[%clk 0:03:00.9]} 1... e5 {[%clk 0:02:57.5]} 2. Nf3 {[%clk 0:03:00.4]}
2... Nc6 {[%clk 0:02:57]} 3. Bb5 {[%clk 0:02:59.4]} 3... a6 {[%clk 0:02:56.7]}
4. Ba4 {[%clk 0:02:58.9]} 4... Nf6 {[%clk 0:02:56.7]} 5. d3 {[%clk 0:02:58.9]}
5... b5 {[%clk 0:02:55.6]} 6. Bb3 {[%clk 0:02:57]} 6... Be7 {[%clk 0:02:56.3]}
7. O-O {[%clk 0:02:53.3]} 7... d6 {[%clk 0:02:54.8]} 8. Nc3 {[%clk 0:02:50.7]}
8... Bg4 {[%clk 0:02:52.2]} 9. Be3 {[%clk 0:02:49.4]} 9... Na5 {[%clk
0:02:48.2]} 10. h3 {[%clk 0:02:45.5]} 10... Nxb3 {[%clk 0:02:45.7]} 11. axb3
{[%clk 0:02:44.6]} 11... Bh5 {[%clk 0:02:45.8]} 12. Nd5 {[%clk 0:02:40.8]} 12...
Nxd5 {[%clk 0:02:42.1]} 13. exd5 {[%clk 0:02:40.6]} 13... f5 {[%clk 0:02:42.5]}
14. b4 {[%clk 0:02:24.2]} 14... O-O {[%clk 0:02:40.2]} 15. Qc1 {[%clk
0:01:59.5]} 15... Bxf3 {[%clk 0:02:37.3]} 16. gxf3 {[%clk 0:01:59.2]} 16... f4
{[%clk 0:02:37]} 17. Bd2 {[%clk 0:01:59.4]} 17... Qe8 {[%clk 0:02:36.3]} 18. Kh2
{[%clk 0:01:58.6]} 18... Qh5 {[%clk 0:02:36.2]} 19. Qd1 {[%clk 0:01:48.6]} 19...
Rf6 {[%clk 0:02:32.4]} 20. Rh1 {[%clk 0:01:41.8]} 20... Rg6 {[%clk 0:02:23.5]}
21. Qe2 {[%clk 0:01:35.9]} 21... Rf8 {[%clk 0:02:11.3]} 22. Rag1 {[%clk
0:01:34.4]} 22... Rff6 {[%clk 0:02:11.1]} 23. Rg4 {[%clk 0:01:22.6]} 23... Qf5
{[%clk 0:01:52.3]} 24. Rhg1 {[%clk 0:01:11.8]} 24... Rxg4 {[%clk 0:01:46.8]} 25.
Rxg4 {[%clk 0:00:59.2]} 25... h5 {[%clk 0:01:44.7]} 26. Rg1 {[%clk 0:00:55.5]}
26... Rg6 {[%clk 0:01:29.1]} 27. Ra1 {[%clk 0:00:42.1]} 27... Bh4 {[%clk
0:01:14.6]} 28. Rxa6 {[%clk 0:00:26.3]} 28... Kh7 {[%clk 0:00:24.8]} 29. Ra7
{[%clk 0:00:18.3]} 29... Qf7 {[%clk 0:00:22.8]} 30. Rb7 {[%clk 0:00:17.7]} 30...
Qxd5 {[%clk 0:00:18.5]} 31. Rb8 {[%clk 0:00:17.5]} 31... Qa2 {[%clk 0:00:17.8]}
32. Bc3 {[%clk 0:00:15.3]} 32... Qb1 {[%clk 0:00:17.7]} 33. Be1 {[%clk
0:00:15.1]} 33... Qxb2 {[%clk 0:00:17.2]} 34. Qe4 {[%clk 0:00:14.7]} 34... Qxc2
{[%clk 0:00:17.3]} 35. Rh8+ {[%clk 0:00:12.4]} 35... Kxh8 {[%clk 0:00:14.9]} 36.
Qxg6 {[%clk 0:00:13.3]} 36... Bxf2 {[%clk 0:00:06.1]} 37. Qe8+ {[%clk
0:00:13.4]} 37... Kh7 {[%clk 0:00:04.3]} 38. Qxh5+ {[%clk 0:00:14.3]} 38... Kg8
{[%clk 0:00:05.2]} 39. Qe8+ {[%clk 0:00:14.7]} 39... Kh7 {[%clk 0:00:05.7]} 40.
Qh5+ {[%clk 0:00:14.8]} 40... Kg8 {[%clk 0:00:06.1]} 41. Qe8+ {[%clk 0:00:14.7]}
41... Kh7 {[%clk 0:00:06.5]} 42. Qh5+ {[%clk 0:00:14.9]} 1/2-1/2

[Event "*** Titled Tuesday Blitz"]
[Site "Chess.com"]
[Date "2020.05.19"]
[Round "6"]
[White "Bathory44"]
[Black "Majesth"]
[Result "1-0"]
[WhiteElo "2586"]
[BlackElo "2457"]
[TimeControl "180+1"]
[EndTime "13:09:47 PDT"]
[Termination "Bathory44 won by checkmate"]

1. e4 {[%clk 0:03:00.9]} 1... e6 {[%clk 0:02:58.5]} 2. d4 {[%clk 0:03:00.6]}
2... d5 {[%clk 0:02:59]} 3. Nd2 {[%clk 0:03:00.2]} 3... dxe4 {[%clk 0:02:59.4]}
4. Nxe4 {[%clk 0:03:00.4]} 4... Nd7 {[%clk 0:03:00]} 5. Nf3 {[%clk 0:02:59.9]}
5... Ngf6 {[%clk 0:03:00.6]} 6. Nxf6+ {[%clk 0:03:00.3]} 6... Nxf6 {[%clk
0:03:01.1]} 7. Bc4 {[%clk 0:03:00.9]} 7... c5 {[%clk 0:03:01.6]} 8. O-O {[%clk
0:03:01.4]} 8... cxd4 {[%clk 0:03:01.2]} 9. Qe2 {[%clk 0:03:02]} 9... Bc5 {[%clk
0:02:54.4]} 10. Rd1 {[%clk 0:03:01]} 10... O-O {[%clk 0:02:39.3]} 11. Bg5 {[%clk
0:02:59.8]} 11... Qc7 {[%clk 0:02:24.5]} 12. Bxf6 {[%clk 0:02:50]} 12... gxf6
{[%clk 0:02:23.2]} 13. Nxd4 {[%clk 0:02:49.3]} 13... Qf4 {[%clk 0:01:56.2]} 14.
g3 {[%clk 0:02:11.1]} 14... Qe5 {[%clk 0:01:45.4]} 15. Qg4+ {[%clk 0:02:08.1]}
15... Qg5 {[%clk 0:01:42.4]} 16. Qe4 {[%clk 0:01:49]} 16... Qe5 {[%clk
0:01:21.2]} 17. Qg4+ {[%clk 0:01:37.5]} 17... Qg5 {[%clk 0:01:20.3]} 18. Qe2
{[%clk 0:01:36.7]} 18... Qe5 {[%clk 0:01:16.7]} 19. Qd2 {[%clk 0:01:24.4]} 19...
Rd8 {[%clk 0:00:51.2]} 20. c3 {[%clk 0:01:24.2]} 20... Bxd4 {[%clk 0:00:40.7]}
21. cxd4 {[%clk 0:01:23.4]} 21... Qg5 {[%clk 0:00:41.1]} 22. Qb4 {[%clk
0:01:10.8]} 22... b6 {[%clk 0:00:30.7]} 23. Qe7 {[%clk 0:00:51.5]} 23... Bd7
{[%clk 0:00:21.7]} 24. d5 {[%clk 0:00:47.9]} 24... e5 {[%clk 0:00:15.2]} 25. d6
{[%clk 0:00:46.6]} 25... Qg7 {[%clk 0:00:14.9]} 26. Rac1 {[%clk 0:00:38.5]}
26... Bg4 {[%clk 0:00:11.8]} 27. f3 {[%clk 0:00:20]} 27... Bxf3 {[%clk
0:00:06.2]} 28. Rf1 {[%clk 0:00:20.5]} 28... Bg4 {[%clk 0:00:06.6]} 29. Rxf6
{[%clk 0:00:19.4]} 29... Rf8 {[%clk 0:00:05.4]} 30. Rcf1 {[%clk 0:00:18.5]}
30... Bh5 {[%clk 0:00:05.5]} 31. d7 {[%clk 0:00:17.1]} 31... Bg6 {[%clk
0:00:05.9]} 32. Qxe5 {[%clk 0:00:13.8]} 32... Rad8 {[%clk 0:00:05.8]} 33. Qd6
{[%clk 0:00:13.8]} 33... Qh6 {[%clk 0:00:05.4]} 34. Qd4 {[%clk 0:00:09.3]} 34...
Qg7 {[%clk 0:00:04.9]} 35. R1f4 {[%clk 0:00:07.8]} 35... Qh6 {[%clk 0:00:04.3]}
36. h4 {[%clk 0:00:07.2]} 36... Qg7 {[%clk 0:00:03.7]} 37. g4 {[%clk 0:00:06.9]}
37... h5 {[%clk 0:00:03.6]} 38. g5 {[%clk 0:00:05.8]} 38... Kh7 {[%clk
0:00:02.2]} 39. Bd3 {[%clk 0:00:04.6]} 39... b5 {[%clk 0:00:03.1]} 40. Bxg6+
{[%clk 0:00:04]} 40... fxg6 {[%clk 0:00:04]} 41. Rxf8 {[%clk 0:00:03.5]} 41...
Rxf8 {[%clk 0:00:04.9]} 42. Qxg7+ {[%clk 0:00:02.9]} 42... Kxg7 {[%clk
0:00:05.8]} 43. Rxf8 {[%clk 0:00:03.4]} 43... Kxf8 {[%clk 0:00:06.1]} 44. d8=Q+
{[%clk 0:00:04.3]} 44... Kf7 {[%clk 0:00:07]} 45. Qc7+ {[%clk 0:00:04.6]} 45...
Kg8 {[%clk 0:00:07.9]} 46. Qxa7 {[%clk 0:00:05.4]} 46... Kh8 {[%clk 0:00:08]}
47. Qb6 {[%clk 0:00:06.3]} 47... Kh7 {[%clk 0:00:08.9]} 48. Qxb5 {[%clk
0:00:07.2]} 48... Kg8 {[%clk 0:00:09.6]} 49. Qd7 {[%clk 0:00:07.5]} 49... Kh8
{[%clk 0:00:09.5]} 50. a4 {[%clk 0:00:08.4]} 50... Kg8 {[%clk 0:00:10.4]} 51. a5
{[%clk 0:00:09]} 51... Kh8 {[%clk 0:00:11.3]} 52. a6 {[%clk 0:00:09.9]} 52...
Kg8 {[%clk 0:00:12.2]} 53. a7 {[%clk 0:00:10.7]} 53... Kh8 {[%clk 0:00:13.1]}
54. a8=Q# {[%clk 0:00:11.6]} 1-0

[Event "*** Titled Tuesday Blitz"]
[Site "Chess.com"]
[Date "2020.05.19"]
[Round "6"]
[White "Radzio1987"]
[Black "1stSecond"]
[Result "1-0"]
[WhiteElo "2914"]
[BlackElo "2733"]
[TimeControl "180+1"]
[EndTime "13:09:48 PDT"]
[Termination "Radzio1987 won on time"]

1. c4 {[%clk 0:03:00.9]} 1... Nf6 {[%clk 0:02:53.1]} 2. Nc3 {[%clk 0:03:01]}
2... e6 {[%clk 0:02:48.5]} 3. e4 {[%clk 0:03:00.9]} 3... c5 {[%clk 0:02:46.5]}
4. e5 {[%clk 0:02:59.5]} 4... Ng8 {[%clk 0:02:46]} 5. Nf3 {[%clk 0:02:59.8]}
5... Nc6 {[%clk 0:02:45.5]} 6. d4 {[%clk 0:03:00.2]} 6... cxd4 {[%clk
0:02:45.7]} 7. Nxd4 {[%clk 0:03:01.1]} 7... Nxe5 {[%clk 0:02:45.5]} 8. Ndb5
{[%clk 0:02:59.8]} 8... a6 {[%clk 0:02:40.2]} 9. Nd6+ {[%clk 0:02:59.4]} 9...
Bxd6 {[%clk 0:02:40.2]} 10. Qxd6 {[%clk 0:03:00.3]} 10... f6 {[%clk 0:02:40.1]}
11. Be3 {[%clk 0:03:00]} 11... Nf7 {[%clk 0:02:23.5]} 12. Qb4 {[%clk 0:02:52.9]}
12... Qe7 {[%clk 0:02:19.9]} 13. c5 {[%clk 0:02:48.6]} 13... Ngh6 {[%clk
0:02:16.3]} 14. Bd3 {[%clk 0:02:47.8]} 14... Ne5 {[%clk 0:02:11]} 15. Bc2 {[%clk
0:02:42.4]} 15... Nhf7 {[%clk 0:01:49.8]} 16. O-O-O {[%clk 0:02:38.5]} 16... b5
{[%clk 0:01:42.9]} 17. f4 {[%clk 0:01:32.2]} 17... Nc6 {[%clk 0:01:35.7]} 18.
Qe4 {[%clk 0:01:31.2]} 18... Bb7 {[%clk 0:01:32.6]} 19. Rhe1 {[%clk 0:01:26.2]}
19... f5 {[%clk 0:01:12.9]} 20. Qd3 {[%clk 0:01:26.1]} 20... Nb4 {[%clk
0:01:07.4]} 21. Qd2 {[%clk 0:01:09.3]} 21... Nxc2 {[%clk 0:01:02]} 22. Kxc2
{[%clk 0:01:10.2]} 22... b4 {[%clk 0:00:58.2]} 23. Na4 {[%clk 0:01:08.8]} 23...
Be4+ {[%clk 0:00:54.8]} 24. Kc1 {[%clk 0:01:09]} 24... Rc8 {[%clk 0:00:54.6]}
25. Qxb4 {[%clk 0:01:07.8]} 25... O-O {[%clk 0:00:45.3]} 26. Nb6 {[%clk
0:01:06.8]} 26... Rc7 {[%clk 0:00:43.2]} 27. Rd4 {[%clk 0:00:45.6]} 27... Rb8
{[%clk 0:00:41.4]} 28. Rc4 {[%clk 0:00:44.3]} 28... Qh4 {[%clk 0:00:36.3]} 29.
b3 {[%clk 0:00:41.4]} 29... Bd3 {[%clk 0:00:30.9]} 30. g3 {[%clk 0:00:30.5]}
30... Qxh2 {[%clk 0:00:30]} 31. Rc3 {[%clk 0:00:30.4]} 31... Be4 {[%clk
0:00:25]} 32. Bd2 {[%clk 0:00:26]} 32... Qf2 {[%clk 0:00:22.5]} 33. a4 {[%clk
0:00:20.7]} 33... h5 {[%clk 0:00:17.6]} 34. a5 {[%clk 0:00:20.5]} 34... d6
{[%clk 0:00:10.9]} 35. cxd6 {[%clk 0:00:19.6]} 35... Rxc3+ {[%clk 0:00:11]} 36.
Qxc3 {[%clk 0:00:19.7]} 36... Nxd6 {[%clk 0:00:11.4]} 37. Qc7 {[%clk 0:00:17.8]}
37... Rb7 {[%clk 0:00:05.3]} 38. Qxd6 {[%clk 0:00:17.7]} 38... Qxg3 {[%clk
0:00:05.3]} 39. Kb2 {[%clk 0:00:17.6]} 39... Bd5 {[%clk 0:00:03.4]} 40. Bc3
{[%clk 0:00:13.9]} 40... Qf2+ {[%clk 0:00:03.3]} 41. Ka3 {[%clk 0:00:13.3]}
41... Qc2 {[%clk 0:00:03.6]} 42. Qb4 {[%clk 0:00:05.3]} 42... Be4 {[%clk
0:00:02.5]} 43. Qd4 {[%clk 0:00:04.7]} 43... Rc7 {[%clk 0:00:02.4]} 44. Bb2
{[%clk 0:00:04.2]} 44... Kh7 {[%clk 0:00:02.7]} 45. Re3 {[%clk 0:00:04.4]} 45...
Qg2 {[%clk 0:00:02]} 46. Nd7 {[%clk 0:00:03]} 1-0

[Event "*** Titled Tuesday Blitz"]
[Site "Chess.com"]
[Date "2020.05.19"]
[Round "6"]
[White "Dhaydon19"]
[Black "tsvet2005"]
[Result "1-0"]
[WhiteElo "2726"]
[BlackElo "2515"]
[TimeControl "180+1"]
[EndTime "13:09:48 PDT"]
[Termination "Dhaydon19 won on time"]

1. d4 {[%clk 0:02:46.2]} 1... d5 {[%clk 0:02:58.1]} 2. Nf3 {[%clk 0:02:47.1]}
2... Nf6 {[%clk 0:02:56.9]} 3. g3 {[%clk 0:02:47.6]} 3... Bg4 {[%clk 0:02:56]}
4. Bg2 {[%clk 0:02:48.1]} 4... c6 {[%clk 0:02:55.9]} 5. O-O {[%clk 0:02:48.4]}
5... Nbd7 {[%clk 0:02:55.9]} 6. c3 {[%clk 0:02:49]} 6... e6 {[%clk 0:02:55.2]}
7. Nbd2 {[%clk 0:02:49.7]} 7... Be7 {[%clk 0:02:55.2]} 8. Re1 {[%clk 0:02:50.4]}
8... O-O {[%clk 0:02:55.7]} 9. e4 {[%clk 0:02:50.8]} 9... a5 {[%clk 0:02:56]}
10. e5 {[%clk 0:02:51.2]} 10... Ne8 {[%clk 0:02:55.9]} 11. h3 {[%clk 0:02:51.1]}
11... Bh5 {[%clk 0:02:55.7]} 12. g4 {[%clk 0:02:51.5]} 12... Bg6 {[%clk
0:02:55.5]} 13. Nf1 {[%clk 0:02:52.2]} 13... Nc7 {[%clk 0:02:55.5]} 14. Ng3
{[%clk 0:02:51.7]} 14... c5 {[%clk 0:02:54.5]} 15. Be3 {[%clk 0:02:51.3]} 15...
Na6 {[%clk 0:02:54.3]} 16. a3 {[%clk 0:02:50.9]} 16... Rc8 {[%clk 0:02:53.6]}
17. Bf1 {[%clk 0:02:47.9]} 17... Qb6 {[%clk 0:02:52.9]} 18. Re2 {[%clk 0:02:36]}
18... cxd4 {[%clk 0:02:48.9]} 19. cxd4 {[%clk 0:02:34.9]} 19... Rc7 {[%clk
0:02:45.5]} 20. h4 {[%clk 0:02:29.9]} 20... h6 {[%clk 0:02:39.6]} 21. h5 {[%clk
0:02:28.3]} 21... Bh7 {[%clk 0:02:39.6]} 22. g5 {[%clk 0:02:28.2]} 22... hxg5
{[%clk 0:02:31.6]} 23. Bxg5 {[%clk 0:02:27.5]} 23... Bxg5 {[%clk 0:02:20.2]} 24.
Nxg5 {[%clk 0:02:28.4]} 24... Rfc8 {[%clk 0:02:20.4]} 25. Nxh7 {[%clk
0:02:26.4]} 25... Kxh7 {[%clk 0:02:20.9]} 26. Rd2 {[%clk 0:02:27.2]} 26... Nf8
{[%clk 0:02:09.4]} 27. Bd3+ {[%clk 0:02:25.6]} 27... Kh8 {[%clk 0:02:06.6]} 28.
h6 {[%clk 0:02:20]} 28... g6 {[%clk 0:02:04.7]} 29. Qg4 {[%clk 0:01:55.1]} 29...
Rc1+ {[%clk 0:02:03.1]} 30. Rxc1 {[%clk 0:01:55.1]} 30... Rxc1+ {[%clk 0:02:04]}
31. Kg2 {[%clk 0:01:55.4]} 31... Qd8 {[%clk 0:01:52.6]} 32. Qf4 {[%clk
0:01:52.9]} 32... Qe7 {[%clk 0:01:49.1]} 33. Nf1 {[%clk 0:01:47.9]} 33... Rc8
{[%clk 0:01:43.7]} 34. Ne3 {[%clk 0:01:47.9]} 34... Nh7 {[%clk 0:01:43.1]} 35.
Ng4 {[%clk 0:01:31.6]} 35... Qg5 {[%clk 0:01:40.6]} 36. Qxg5 {[%clk 0:01:31.4]}
36... Nxg5 {[%clk 0:01:41.5]} 37. f4 {[%clk 0:01:29.5]} 37... Nh7 {[%clk
0:01:39.2]} 38. Rc2 {[%clk 0:01:25.9]} 38... Rxc2+ {[%clk 0:01:37]} 39. Bxc2
{[%clk 0:01:26.8]} 39... Nb8 {[%clk 0:01:37.6]} 40. Kf3 {[%clk 0:01:25.4]} 40...
Nc6 {[%clk 0:01:35.8]} 41. Ke3 {[%clk 0:01:25.4]} 41... Ne7 {[%clk 0:01:34.5]}
42. Bd3 {[%clk 0:01:24.7]} 42... Nf5+ {[%clk 0:01:25.6]} 43. Bxf5 {[%clk
0:01:24.6]} 43... gxf5 {[%clk 0:01:26.5]} 44. Nf2 {[%clk 0:01:24.2]} 44... Nf8
{[%clk 0:01:27]} 45. Nh3 {[%clk 0:01:23.5]} 45... Kh7 {[%clk 0:01:18.1]} 46.
Ng5+ {[%clk 0:01:23.6]} 46... Kxh6 {[%clk 0:01:18.7]} 47. Nxf7+ {[%clk
0:01:23.8]} 47... Kg7 {[%clk 0:01:19]} 48. Nd8 {[%clk 0:01:24.1]} 48... b6
{[%clk 0:01:16.1]} 49. Nc6 {[%clk 0:01:16.3]} 49... Kf7 {[%clk 0:01:12.1]} 50.
Na7 {[%clk 0:01:12.4]} 50... Nd7 {[%clk 0:01:01.1]} 51. Kf3 {[%clk 0:01:09.4]}
51... Ke7 {[%clk 0:00:54.4]} 52. Kg3 {[%clk 0:01:07.5]} 52... Kd8 {[%clk
0:00:52.9]} 53. Kh4 {[%clk 0:01:07.8]} 53... Kc7 {[%clk 0:00:47.9]} 54. Kg5
{[%clk 0:01:08.1]} 54... Kb7 {[%clk 0:00:38.3]} 55. Nb5 {[%clk 0:01:06.4]} 55...
Kc6 {[%clk 0:00:38.3]} 56. Nc3 {[%clk 0:01:06.4]} 56... b5 {[%clk 0:00:32.5]}
57. Kg6 {[%clk 0:01:06.2]} 57... b4 {[%clk 0:00:32.6]} 58. axb4 {[%clk
0:01:06.1]} 58... axb4 {[%clk 0:00:33.5]} 59. Ne2 {[%clk 0:01:03.4]} 59... Kb5
{[%clk 0:00:29.2]} 60. b3 {[%clk 0:01:01.9]} 60... Nb6 {[%clk 0:00:18]} 61. Kf7
{[%clk 0:01:01.8]} 61... Nc4 {[%clk 0:00:15.6]} 62. Kxe6 {[%clk 0:01:00.7]}
62... Nd2 {[%clk 0:00:15.4]} 63. Nc1 {[%clk 0:00:59.1]} 1-0